bitfinex-derivatives/quotes_SOLF0:USTF0_20260312
["timestamp","ask_amount","ask_price","bid_price","bid_amount"]
[1773328194803,10.535,85.422,85.365,54.85509092]
[1773328195103,10.534,85.429,85.375,10.541]
[1773328195303,10.534,85.429,85.365,54.85509092]
[1773328195806,10.533,85.438,85.365,54.85509092]
[1773328197004,10.534,85.43,85.365,54.85509092]
[1773328197400,35.0,85.449,85.365,54.85509092]
[1773328197603,35.0,85.449,85.367,54.89091024]
[1773328198305,10.533,85.439,85.383,54.89091024]
[1773328199006,10.532,85.448,85.387,54.89154723]
[1773328199506,10.533,85.438,85.387,54.89154723]
[1773328200206,10.534,85.43,85.387,54.89154723]
[1773328200504,35.0,85.449,85.389,54.8553871]
[1773328201005,10.533,85.439,85.389,54.8553871]
[1773328201203,9.38250882,85.43,85.349,54.8553871]
[1773328201500,35.0,85.409,85.349,54.8553871]
[1773328202498,10.539,85.388,85.349,54.8553871]
[1773328202697,35.0,85.409,85.349,54.8553871]
[1773328203098,9.38250882,85.39,85.332,10.546]
[1773328203604,9.38250882,85.37,85.329,54.85801091]
[1773328204011,9.38250882,85.39,85.329,54.85801091]
[1773328204510,9.38250882,85.39,85.336,10.545]
[1773328204906,10.539,85.389,85.336,65.47204159]
[1773328205211,40.48,85.404,85.344,54.92704159]
[1773328205510,9.38250882,85.39,85.326,54.90109053]
[1773328205708,9.38250882,85.39,85.327,10.547]
[1773328206103,10.54,85.377,85.327,10.547]
[1773328206703,10.542,85.368,85.326,54.90109053]
[1773328207408,10.542,85.368,85.318,10.548]
[1773328207907,9.38250882,85.37,85.327,10.547]
[1773328208110,10.541,85.376,85.327,10.547]
[1773328208411,10.541,85.376,85.327,65.29260852]
[1773328210611,9.38250882,85.39,85.337,54.64166249]
[1773328210916,35.0,85.409,85.337,54.64166249]
[1773328211115,40.48,85.418,85.339,54.64166249]
[1773328211413,40.48,85.418,85.37,10.541]
[1773328211414,10.535,85.418,85.37,10.541]
[1773328212407,10.535,85.418,85.374,65.17521852]
[1773328212709,35.0,85.429,85.36,40.48]
[1773328212916,35.0,85.429,85.355,54.63421852]
[1773328215111,10.537,85.409,85.363,10.542]
[1773328216413,10.537,85.402,85.355,65.17721852]
[1773328216618,35.0,85.419,85.355,54.63421852]
[1773328216816,9.40384495,85.42,85.355,54.63421852]
[1773328217122,10.536,85.417,85.369,65.04508835]
[1773328217320,10.536,85.417,85.369,54.50408835]
[1773328217515,40.48,85.432,85.369,54.50408835]
[1773328218618,10.534,85.431,85.386,10.539]
[1773328219219,10.535,85.425,85.386,10.539]
[1773328219618,10.535,85.419,85.369,54.50408835]
[1773328220118,40.48,85.436,85.369,54.50408835]
[1773328220716,10.533,85.434,85.369,54.50408835]
[1773328221117,40.48,85.436,85.369,54.50408835]
[1773328222017,10.534,85.428,85.384,10.54]
[1773328223519,40.48,85.436,85.369,54.50408835]
[1773328225021,10.535,85.423,85.382,65.05242126]
[1773328225718,10.534,85.431,85.388,10.539]
[1773328225918,40.48,85.436,85.389,54.52847273]
[1773328226322,10.534,85.429,85.39,10.539]
[1773328227018,10.534,85.429,85.34,9.40384495]
[1773328227019,35.0,85.419,85.358,36.66645061]
[1773328227225,35.0,85.399,85.308,40.48]
[1773328227420,40.48,85.398,85.308,40.48]
[1773328228425,10.54,85.379,85.308,40.48]
[1773328229122,10.54,85.379,85.309,45.60503816]
[1773328229917,10.54,85.379,85.33,45.58059513]
[1773328230726,10.539,85.387,85.34,10.545]
[1773328231228,10.54,85.379,85.332,45.58073465]
[1773328232123,10.54,85.379,85.335,56.13223903]
[1773328232321,40.48,85.398,85.335,56.13223903]
[1773328232322,10.539,85.386,85.335,56.13223903]
[1773328233119,40.48,85.398,85.335,56.13223903]
[1773328233120,10.54,85.379,85.335,45.58623903]
[1773328233319,9.40384495,85.36,85.3,45.58637743]
[1773328234518,19.94684495,85.36,85.307,10.549]
[1773328234721,9.40384495,85.36,85.308,45.59695968]
[1773328235523,9.40384495,85.36,85.317,10.548]
[1773328235826,9.40384495,85.36,85.308,45.59695968]
[1773328236119,10.543,85.359,85.311,56.13270737]
[1773328237729,10.544,85.352,85.303,56.22111095]
[1773328240830,10.544,85.345,85.303,56.22111095]
[1773328241831,10.543,85.353,85.303,56.22111095]
[1773328242226,10.543,85.353,85.31,10.549]
[1773328242428,10.543,85.353,85.31,56.22427939]
[1773328243031,9.40384495,85.36,85.31,56.22427939]
[1773328243929,10.544,85.353,85.31,56.22427939]
[1773328244629,19.94684495,85.36,85.31,56.22427939]
[1773328244832,9.40384495,85.36,85.31,56.22427939]
[1773328246027,10.543,85.353,85.31,56.22427939]
[1773328247834,10.544,85.347,85.31,45.67527939]
[1773328248725,9.40384495,85.36,85.295,10.551]
[1773328248726,10.545,85.34,85.295,10.551]
[1773328248932,9.40384495,85.36,85.295,56.23482651]
[1773328250435,10.545,85.342,85.295,56.23482651]
[1773328250736,10.545,85.342,85.302,45.68490626]
[1773328254135,10.546,85.335,85.302,45.68490626]
[1773328255637,3.51603048,85.33,85.302,45.68490626]
[1773328256129,3.51603048,85.34,85.302,45.68490626]
[1773328256532,10.544,85.351,85.312,45.71872515]
[1773328256732,3.51603048,85.35,85.312,45.71872515]
[1773328256932,21.077,85.396,85.312,45.71872515]
[1773328256933,3.51603048,85.36,85.313,40.5]
[1773328257131,3.51603048,85.35,85.314,45.71872515]
[1773328257530,9.41346995,85.37,85.314,45.71872515]
[1773328257833,35.17,85.369,85.314,45.71872515]
[1773328258232,35.17,85.367,85.314,45.71872515]
[1773328258939,10.545,85.342,85.314,45.71872515]
[1773328259632,10.544,85.349,85.314,45.71872515]
[1773328259830,40.5,85.368,85.314,45.71872515]
[1773328260932,10.545,85.34,85.314,45.71872515]
[1773328261138,40.5,85.368,85.314,45.71872515]
[1773328261542,40.5,85.386,85.329,45.75130525]
[1773328261734,9.41346995,85.39,85.329,45.75130525]
[1773328262129,9.41346995,85.39,85.333,45.75130525]
[1773328262330,9.41346995,85.41,85.333,45.75130525]
[1773328262536,9.41346995,85.41,85.335,45.7514394]
[1773328262836,9.41346995,85.41,85.337,45.7514394]
[1773328263033,35.17,85.409,85.338,45.7514394]
[1773328263237,9.41346995,85.39,85.338,45.7514394]
[1773328263743,10.542,85.363,85.318,45.63348868]
[1773328263931,35.17,85.389,85.318,45.63348868]
[1773328264136,10.541,85.37,85.321,45.63348868]
[1773328264342,35.17,85.389,85.321,45.63348868]
[1773328264840,10.54,85.38,85.331,45.63359102]
[1773328265333,35.17,85.389,85.334,45.64075945]
[1773328265540,35.17,85.404,85.334,45.64075945]
[1773328265935,35.17,85.404,85.31,9.41346995]
[1773328265936,9.41346995,85.41,85.352,45.64075945]
[1773328266637,35.17,85.409,85.352,45.64075945]
[1773328267243,9.41346995,85.39,85.352,28.00975945]
[1773328268836,10.539,85.387,85.352,28.00975945]
[1773328269034,9.41346995,85.39,85.352,28.00975945]
[1773328269340,9.41346995,85.39,85.32,40.5]
[1773328269744,10.542,85.368,85.322,10.547]
[1773328269945,9.41346995,85.37,85.288,21.103]
[1773328270142,9.41346995,85.37,85.289,40.5]
[1773328270844,10.543,85.355,85.31,10.549]
[1773328271444,9.41346995,85.37,85.289,40.5]
[1773328271445,9.41346995,85.37,85.313,27.94929142]
[1773328272348,35.17,85.329,85.246,16.29264724]
[1773328272542,9.41346995,85.31,85.246,16.29264724]
[1773328273247,40.5,85.315,85.246,16.29264724]
[1773328273447,10.548,85.317,85.246,56.79264724]
[1773328273748,10.548,85.317,85.246,16.29264724]
[1773328274349,10.548,85.317,85.247,18.97226192]
[1773328274539,10.549,85.306,85.253,18.97261935]
[1773328274945,35.17,85.329,85.253,18.97261935]
[1773328275647,9.42391169,85.33,85.253,18.97261935]
[1773328276347,9.42391169,85.33,85.272,19.03820555]
[1773328277552,10.548,85.319,85.274,18.99592036]
[1773328278148,9.42391169,85.33,85.274,18.99592036]
[1773328278849,10.547,85.327,85.276,18.99629316]
[1773328279058,35.17,85.366,85.278,18.99629316]
[1773328279350,75.67,85.366,85.28,18.89352403]
[1773328279949,9.42391169,85.35,85.296,18.89352403]
[1773328280450,10.545,85.344,85.296,18.89352403]
[1773328281751,10.543,85.355,85.297,18.85394197]
[1773328282151,35.17,85.365,85.297,18.85394197]
[1773328282748,10.543,85.353,85.302,18.85409989]
[1773328283147,10.543,85.353,85.301,10.55]
[1773328283148,10.542,85.362,85.309,18.85409989]
[1773328284154,10.542,85.362,85.311,18.85410105]
[1773328285259,35.17,85.386,85.321,18.85425556]
[1773328285656,289.20609609,85.387,85.321,18.85425556]
[1773328286357,289.20609609,85.387,85.323,18.86177536]
[1773328286761,9.42391169,85.37,85.323,18.86177536]
[1773328288263,289.20609609,85.387,85.323,18.86177536]
[1773328288758,289.20609609,85.387,85.343,18.86786041]
[1773328289468,10.539,85.386,85.343,18.86786041]
[1773328290565,10.538,85.397,85.343,18.86786041]
[1773328290866,40.5,85.405,85.343,18.86786041]
[1773328291563,9.42391169,85.41,85.345,18.90587581]
[1773328291865,40.5,85.409,85.345,18.90587581]
[1773328292060,10.538,85.4,85.347,10.544]
[1773328292265,10.538,85.4,85.348,18.90587581]
[1773328293860,10.539,85.393,85.348,18.90587581]
[1773328295668,40.5,85.409,85.331,18.79311639]
[1773328295974,9.42391169,85.39,85.331,18.79311639]
[1773328296975,10.541,85.376,85.331,18.79311639]
[1773328297670,3.51257469,85.37,85.331,18.79311639]
[1773328297874,10.541,85.376,85.331,18.79311639]
[1773328298175,3.51257469,85.37,85.331,18.79311639]
[1773328298874,3.51257469,85.36,85.317,18.81243288]
[1773328299876,3.51257469,85.36,85.319,18.88192526]
[1773328300077,10.542,85.361,85.319,18.88192526]
[1773328300478,10.542,85.361,85.321,18.88208065]
[1773328300677,40.5,85.409,85.341,18.88208065]
[1773328300974,3.51257469,85.41,85.351,18.88208065]
[1773328301180,3.51257469,85.41,85.363,18.88208065]
[1773328301478,3.51257469,85.41,85.296,35.17]
[1773328301479,3.51257469,85.42,85.371,18.88820353]
[1773328302478,10.535,85.418,85.374,18.88820353]
[1773328302673,3.51257469,85.45,85.401,18.88836215]
[1773328302879,10.532,85.449,85.401,18.88836215]
[1773328303878,9.39282571,85.45,85.357,19.04865236]
[1773328304475,9.39282571,85.43,85.374,19.04928024]
[1773328305580,10.536,85.413,85.374,19.04928024]
[1773328305781,35.17,85.449,85.374,19.04928024]
[1773328306878,10.535,85.424,85.374,19.04928024]
[1773328307273,35.17,85.449,85.374,19.04928024]
[1773328307478,9.39282571,85.43,85.374,19.04928024]
[1773328308882,10.535,85.425,85.374,19.04928024]
[1773328309083,9.39282571,85.43,85.374,19.04928024]
[1773328309286,9.39282571,85.41,85.343,19.4284466]
[1773328310886,10.539,85.39,85.343,19.4284466]
[1773328312581,10.54,85.381,85.343,19.4284466]
[1773328313178,10.539,85.389,85.343,19.4284466]
[1773328313780,10.538,85.398,85.345,19.46948133]
[1773328314583,10.537,85.406,85.356,19.47011974]
[1773328314989,10.537,85.408,85.356,19.47011974]
[1773328315782,75.67,85.429,85.356,19.47011974]
[1773328315983,9.39282571,85.41,85.356,19.47011974]
[1773328316182,9.39282571,85.41,85.338,19.48423405]
[1773328316984,10.54,85.385,85.338,19.48423405]
[1773328317190,9.39282571,85.41,85.338,19.48423405]
[1773328317590,9.39282571,85.41,85.346,19.56162044]
[1773328318894,10.538,85.394,85.348,19.5623029]
[1773328319092,9.39282571,85.41,85.348,19.5623029]
[1773328319489,10.54,85.378,85.348,19.5623029]
[1773328319694,9.39282571,85.39,85.348,19.5623029]
[1773328320095,10.539,85.387,85.348,19.5623029]
[1773328320592,40.5,85.433,85.365,19.65464585]
[1773328320795,21.065,85.445,85.365,19.65464585]
[1773328320796,40.5,85.445,85.365,19.65464585]
[1773328320991,49.89282571,85.45,85.365,19.65464585]
[1773328321191,10.536,85.417,85.375,19.65464585]
[1773328321389,9.39282571,85.43,85.375,19.65464585]
[1773328321592,35.17,85.429,85.336,19.39745422]
[1773328321789,9.39282571,85.43,85.358,19.39745422]
[1773328321995,9.39282571,85.44,85.358,19.39745422]
[1773328322195,10.535,85.421,85.379,19.39745422]
[1773328322391,9.39282571,85.44,85.379,19.39745422]
[1773328322895,35.17,85.464,85.39,19.39797368]
[1773328322896,9.39282571,85.46,85.39,19.39797368]
[1773328323401,35.17,85.459,85.39,19.39797368]
[1773328324099,10.534,85.432,85.39,19.39797368]
[1773328325195,10.533,85.439,85.39,19.39797368]
[1773328326295,10.533,85.439,85.4,19.39843208]
[1773328326999,10.534,85.432,85.4,19.39843208]
[1773328327203,9.39282571,85.44,85.383,19.39892662]
[1773328327994,10.533,85.434,85.384,19.40184633]
[1773328328301,9.39282571,85.44,85.384,19.40184633]
[1773328328497,35.17,85.463,85.384,19.40184633]
[1773328328703,35.17,85.463,85.36,40.5]
[1773328328704,10.532,85.443,85.395,19.40233521]
[1773328329007,9.39282571,85.46,85.395,19.40233521]
[1773328329206,10.532,85.447,85.41,19.40233521]
[1773328330602,9.39282571,85.44,85.375,19.46928749]
[1773328330804,9.39282571,85.42,85.375,19.46928749]
[1773328331209,10.538,85.397,85.354,19.46928749]
[1773328332010,10.537,85.404,85.354,19.46928749]
[1773328332510,35.17,85.442,85.364,19.4657356]
[1773328332705,9.39282571,85.44,85.364,19.4657356]
[1773328333006,9.39282571,85.42,85.364,19.4657356]
[1773328335805,10.538,85.397,85.364,19.4657356]
[1773328336008,9.39282571,85.42,85.364,19.4657356]
[1773328337708,10.538,85.396,85.364,19.4657356]
[1773328338109,9.40497665,85.41,85.364,19.4657356]
[1773328339009,10.539,85.39,85.364,19.4657356]
[1773328339509,10.538,85.397,85.364,19.4657356]
[1773328344110,9.40497665,85.41,85.347,19.61726493]
[1773328344309,21.071,85.42,85.347,19.61726493]
[1773328344310,9.40497665,85.39,85.347,19.61726493]
[1773328345512,10.539,85.387,85.347,19.61726493]
[1773328345713,3.51176383,85.38,85.347,19.61726493]
[1773328346214,3.51176383,85.37,85.347,19.61726493]
[1773328346809,3.51176383,85.36,85.311,19.6136801]
[1773328347014,3.51176383,85.34,85.311,19.6136801]
[1773328347409,35.17,85.378,85.311,19.6136801]
[1773328347615,40.52,85.379,85.311,19.6136801]
[1773328348012,10.543,85.353,85.313,10.548]
[1773328348212,40.52,85.379,85.314,19.94379199]
[1773328348909,9.41126294,85.4,85.326,19.94371452]
[1773328349614,10.54,85.381,85.329,19.99313477]
[1773328350416,10.539,85.391,85.329,19.99313477]
[1773328350615,9.41126294,85.4,85.329,19.99313477]
[1773328351918,10.54,85.384,85.341,19.960207]
[1773328352113,9.41126294,85.4,85.341,19.960207]
[1773328352513,40.52,85.414,85.35,19.96012498]
[1773328353112,40.52,85.414,85.359,19.96012498]
[1773328353611,10.538,85.399,85.359,19.96012498]
[1773328353912,9.41126294,85.42,85.359,19.96012498]
[1773328354918,10.537,85.407,85.362,19.95948071]
[1773328355816,10.537,85.407,85.337,40.52]
[1773328355817,10.537,85.407,85.366,20.04698422]
[1773328356018,10.536,85.416,85.366,20.04698422]
[1773328356616,10.536,85.416,85.376,20.0469127]
[1773328357924,40.52,85.445,85.378,20.04809314]
[1773328358119,9.41126294,85.44,85.378,20.04809314]
[1773328358321,9.41126294,85.44,85.282,164.151]
[1773328358322,35.17,85.389,85.283,20.04809314]
[1773328358524,9.41126294,85.36,85.294,20.04802287]
[1773328358726,9.41126294,85.36,85.27,9.41126294]
[1773328358727,9.41126294,85.34,85.253,20.04802287]
[1773328359129,35.17,85.351,85.268,20.04802287]
[1773328359422,9.41126294,85.35,85.268,20.04802287]
[1773328359621,10.546,85.329,85.278,19.86750242]
[1773328361329,9.41126294,85.33,85.278,19.86750242]
[1773328361330,10.548,85.32,85.278,19.86750242]
[1773328362128,10.549,85.309,85.259,19.9824816]
[1773328362432,9.41126294,85.31,85.259,19.9824816]
[1773328363028,35.17,85.342,85.259,19.9824816]
[1773328363029,9.41126294,85.32,85.259,19.9824816]
[1773328363431,9.41126294,85.3,85.259,19.9824816]
[1773328364033,9.41126294,85.32,85.259,19.9824816]
[1773328365035,10.546,85.331,85.271,20.03270337]
[1773328365244,9.41126294,85.34,85.271,20.03270337]
[1773328366834,10.547,85.326,85.271,20.03270337]
[1773328367834,10.547,85.326,85.272,10.553]
[1773328368034,10.547,85.326,85.273,19.96902423]
[1773328369637,9.41126294,85.34,85.273,19.96902423]
[1773328369843,9.41126294,85.3,85.257,19.96863826]
[1773328370034,9.41126294,85.32,85.257,19.96863826]
[1773328370545,9.41126294,85.32,85.266,19.96760222]
[1773328371845,10.548,85.319,85.268,19.37758963]
[1773328373036,9.41126294,85.32,85.268,19.37758963]
[1773328373037,10.549,85.311,85.268,19.37758963]
[1773328373242,9.41126294,85.32,85.247,19.37755792]
[1773328373540,35.17,85.348,85.247,19.37755792]
[1773328373541,9.41126294,85.3,85.247,19.37755792]
[1773328374944,10.55,85.299,85.247,19.37755792]
[1773328375641,9.41126294,85.3,85.247,19.37755792]
[1773328375837,9.41126294,85.28,85.246,0.00064724]
[1773328376341,35.17,85.319,85.246,0.00064724]
[1773328376543,9.41126294,85.3,85.246,0.00064724]
[1773328377435,10.551,85.293,85.246,19.36184751]
[1773328378740,10.552,85.285,85.246,19.36184751]
[1773328379341,10.551,85.293,85.246,29.91884751]
[1773328380338,10.551,85.293,85.247,19.437548]
[1773328380540,9.41126294,85.3,85.246,0.00064724]
[1773328381343,10.553,85.279,85.246,0.00064724]
[1773328381543,10.553,85.279,85.21,9.41126294]
[1773328381544,9.41126294,85.28,85.197,19.43653748]
[1773328381942,9.41126294,85.28,85.219,19.43653748]
[1773328382639,35.17,85.292,85.201,19.43651414]
[1773328382840,9.41126294,85.24,85.157,40.54]
[1773328383141,164.082,85.319,85.155,11.57303082]
[1773328383142,35.17,85.259,85.161,19.43651414]
[1773328383342,10.557,85.244,85.192,19.43651414]
[1773328383544,9.41126294,85.25,85.192,19.43651414]
[1773328384140,10.558,85.234,85.192,19.43651414]
[1773328384350,9.41126294,85.25,85.192,19.43651414]
[1773328384738,9.41126294,85.25,85.175,19.35434959]
[1773328384939,9.41126294,85.23,85.175,19.35434959]
[1773328385144,9.41126294,85.23,85.147,19.35434959]
[1773328385445,10.561,85.215,85.154,19.43425106]
[1773328385647,9.41126294,85.22,85.154,19.43425106]
[1773328386142,9.41126294,85.2,85.137,19.43425106]
[1773328386746,9.41126294,85.2,85.039,164.62]
[1773328386747,9.41126294,85.16,85.096,21.47775281]
[1773328386946,9.41126294,85.16,85.096,19.43422208]
[1773328387140,40.54,85.167,85.096,19.43422208]
[1773328387141,9.41126294,85.14,85.096,19.43422208]
[1773328387546,10.57,85.137,85.06,10.58]
[1773328387751,9.41126294,85.14,85.061,19.61342119]
[1773328388347,9.41126294,85.12,85.043,19.61342119]
[1773328388542,35.17,85.147,85.043,19.61342119]
[1773328388751,9.41126294,85.15,85.061,19.61338977]
[1773328388955,10.571,85.131,85.061,19.61338977]
[1773328389154,9.41126294,85.11,85.043,19.61338977]
[1773328389349,282.85624412,85.156,85.043,19.61338977]
[1773328389547,282.85624412,85.156,85.081,19.8801464]
[1773328390552,10.57,85.141,85.081,19.8801464]
[1773328391948,9.41126294,85.15,85.081,19.8801464]
[1773328392854,9.41126294,85.15,85.083,19.79703491]
[1773328393452,9.41126294,85.15,85.087,19.75871325]
[1773328393653,293.42424412,85.156,85.087,19.75871325]
[1773328393654,282.85624412,85.156,85.087,19.75871325]
[1773328394554,282.85624412,85.156,85.1,19.7581417]
[1773328394955,9.41126294,85.19,85.1,19.7581417]
[1773328395457,10.563,85.194,85.118,19.7581417]
[1773328395852,9.41126294,85.2,85.118,19.7581417]
[1773328396246,40.56,85.205,85.118,19.7581417]
[1773328396247,9.41126294,85.18,85.118,19.7581417]
[1773328396654,9.41126294,85.2,85.118,19.7581417]
[1773328396860,10.563,85.195,85.13,19.61316362]
[1773328397647,9.41126294,85.18,85.101,19.43204812]
[1773328398956,10.565,85.177,85.112,10.573]
[1773328399157,10.565,85.177,85.113,19.43167183]
[1773328399454,9.41126294,85.18,85.116,29.99566313]
[1773328399659,35.17,85.21,85.117,19.42266313]
[1773328399862,9.453627,85.24,85.151,19.42266313]
[1773328400559,9.453627,85.24,85.181,19.42109929]
[1773328400760,40.56,85.258,85.181,19.42109929]
[1773328401168,40.56,85.258,85.203,19.42109929]
[1773328401362,9.453627,85.28,85.203,19.42109929]
[1773328401960,10.555,85.262,85.203,19.42109929]
[1773328403459,11.97154209,85.319,85.181,19.38110312]
[1773328403460,9.453627,85.24,85.181,19.38110312]
[1773328404060,35.17,85.251,85.181,19.38110312]
[1773328404259,9.453627,85.25,85.181,19.38110312]
[1773328404563,9.453627,85.25,85.184,19.38110312]
[1773328405567,9.453627,85.25,85.186,19.37526417]
[1773328405765,40.54,85.268,85.186,19.37526417]
[1773328405966,9.453627,85.27,85.186,19.37526417]
[1773328406161,164.058,85.332,85.221,19.37526417]
[1773328406162,10.553,85.272,85.221,19.37526417]
[1773328406767,10.555,85.263,85.221,19.37526417]
[1773328406961,10.555,85.263,85.191,19.37495608]
[1773328407865,10.553,85.273,85.209,19.36665032]
[1773328408462,9.453627,85.3,85.229,19.36665032]
[1773328409168,10.552,85.282,85.229,19.36665032]
[1773328409563,9.453627,85.3,85.229,19.36665032]
[1773328409767,10.551,85.292,85.24,19.42593217]
[1773328409970,9.453627,85.32,85.24,19.42593217]
[1773328410265,9.453627,85.32,85.25,19.42593217]
[1773328410762,9.453627,85.3,85.201,19.42561591]
[1773328410968,9.453627,85.28,85.201,19.42561591]
[1773328412266,9.453627,85.26,85.201,19.42561591]
[1773328415070,10.557,85.243,85.201,19.42561591]
[1773328415466,10.555,85.256,85.201,19.42561591]
[1773328416772,35.17,85.299,85.223,19.32998913]
[1773328417771,9.453627,85.28,85.223,19.32998913]
[1773328418076,10.555,85.26,85.205,29.77846088]
[1773328418372,10.554,85.269,85.211,19.21646088]
[1773328419073,10.555,85.261,85.215,10.56]
[1773328419671,35.17,85.319,85.227,19.1916062]
[1773328420078,35.17,85.319,85.241,19.1916062]
[1773328420876,10.549,85.305,85.253,19.1914205]
[1773328421072,17.327,85.341,85.261,19.1914205]
[1773328421274,10.7995765,85.439,85.331,16.05519413]
[1773328421478,10.66004641,85.409,85.331,16.05519413]
[1773328421867,10.537,85.406,85.333,16.05519413]
[1773328422372,10.66039105,85.429,85.341,16.05519413]
[1773328422571,10.535,85.419,85.355,16.05519413]
[1773328422766,10.66039105,85.429,85.355,16.05519413]
[1773328423270,9.453627,85.43,85.355,16.05519413]
[1773328423271,10.536,85.412,85.355,16.05519413]
[1773328423469,10.66077807,85.427,85.355,16.05519413]
[1773328424476,10.536,85.415,85.355,16.05519413]
[1773328425178,10.537,85.405,85.355,16.05519413]
[1773328425369,10.66077807,85.427,85.355,16.05519413]
[1773328426877,10.536,85.416,85.355,16.05519413]
[1773328427574,10.534,85.43,85.361,14.91577236]
[1773328427776,10.80208302,85.466,85.363,14.91577236]
[1773328428072,10.80208302,85.466,85.381,14.91577236]
[1773328428376,10.531,85.453,85.384,14.91577236]
[1773328428777,10.532,85.442,85.384,14.91577236]
[1773328428979,9.453627,85.46,85.384,14.91577236]
[1773328429274,40.52,85.469,85.384,14.91577236]
[1773328429275,10.80294747,85.457,85.384,14.91577236]
[1773328432574,10.534,85.427,85.384,14.91577236]
[1773328432979,10.80294747,85.457,85.384,14.91577236]
[1773328433179,10.534,85.427,85.384,14.91577236]
[1773328434374,10.535,85.418,85.384,14.91577236]
[1773328434578,51.34577112,85.439,85.384,14.91577236]
[1773328435085,10.535,85.418,85.384,14.91577236]
[1773328435985,10.534,85.429,85.384,14.91577236]
[1773328437181,61.87877112,85.439,85.384,14.91577236]
[1773328437584,51.34577112,85.439,85.384,14.91577236]
[1773328437986,10.535,85.418,85.366,14.49953007]
[1773328438183,10.94212302,85.438,85.367,14.49953007]
[1773328438889,9.453627,85.42,85.367,14.49953007]
[1773328439078,40.52,85.433,85.367,14.49953007]
[1773328439990,10.535,85.421,85.367,14.49953007]
[1773328440482,9.453627,85.42,85.367,14.49953007]
[1773328440880,10.93291272,85.432,85.367,14.49953007]
[1773328441782,9.453627,85.44,85.368,14.49953007]
[1773328442888,10.533,85.439,85.377,14.49953007]
[1773328443188,10.763215,85.439,85.377,14.49953007]
[1773328443683,10.90057396,85.457,85.377,14.49953007]
[1773328443883,51.42057396,85.457,85.395,14.49953007]
[1773328444280,291.33122357,85.458,85.395,14.49953007]
[1773328444487,291.33122357,85.458,85.351,35.17]
[1773328444488,10.90100416,85.477,85.418,14.49953007]
[1773328444791,10.90099336,85.479,85.421,14.49953007]
[1773328444996,10.90099336,85.479,85.426,14.49953007]
[1773328444997,10.528,85.479,85.426,14.49953007]
[1773328445297,10.90141504,85.498,85.426,14.49953007]
[1773328445589,10.529,85.473,85.426,14.49953007]
[1773328445892,40.52,85.493,85.426,14.49953007]
[1773328446082,10.90141504,85.498,85.426,14.49953007]
[1773328446483,10.90141504,85.498,85.442,14.49953007]
[1773328446679,10.93160438,85.459,85.401,14.49953007]
[1773328446890,9.453627,85.46,85.401,14.49953007]
[1773328447883,40.52,85.476,85.403,14.49953007]
[1773328448390,11.69239735,85.475,85.403,14.49953007]
[1773328448689,11.69239735,85.475,85.377,40.52]
[1773328448690,10.53,85.465,85.407,14.49953007]
[1773328449085,11.69239735,85.475,85.407,14.49953007]
[1773328449289,11.69239735,85.475,85.409,14.49953007]
[1773328450486,9.453627,85.46,85.409,14.49953007]
[1773328451185,10.532,85.447,85.409,14.49953007]
[1773328451595,11.85538725,85.458,85.38,14.49953007]
[1773328451891,11.85538725,85.458,85.348,21.088]
[1773328451892,21.30901425,85.48,85.392,14.49953007]
[1773328452693,21.30901425,85.48,85.41,14.49953007]
[1773328452889,40.52,85.498,85.41,14.49953007]
[1773328453089,52.37601633,85.498,85.41,14.49953007]
[1773328453396,11.85601633,85.497,85.42,14.49953007]
[1773328454388,11.85601633,85.497,85.43,14.49953007]
[1773328454589,40.52,85.498,85.43,14.49953007]
[1773328454891,9.453627,85.5,85.43,14.49953007]
[1773328455295,9.453627,85.5,85.44,14.49953007]
[1773328455892,11.90366255,85.499,85.44,14.49953007]
[1773328456300,9.453627,85.5,85.44,14.49953007]
[1773328456499,10.527,85.485,85.44,14.49953007]
[1773328456698,11.90390264,85.499,85.44,14.49953007]
[1773328457797,9.453627,85.5,85.44,14.49953007]
[1773328458200,10.527,85.49,85.44,14.49953007]
[1773328459093,10.526,85.499,85.444,14.49953007]